bitfinex-derivatives/quotes_ETHF0:USTF0_20260208
["timestamp","ask_amount","ask_price","bid_price","bid_amount"]
[1770577748424,3.36857288,2111.9,2110.9,0.54643546]
[1770577748626,0.53471201,2111.8,2110.9,0.54643546]
[1770577750129,2.83386087,2112.1,2111.0,0.54643546]
[1770577750322,0.53234252,2112.1,2111.2,0.54643546]
[1770577753428,0.53248819,2111.8,2111.0,0.54643546]
[1770577760134,0.53141663,2111.7,2110.8,0.55074307]
[1770577763238,0.53097404,2111.6,2110.8,0.55074307]
[1770577768342,0.53143892,2111.5,2110.8,0.55074307]
[1770577768540,2.82830146,2111.6,2110.8,0.55074307]
[1770577768847,2.82830146,2111.8,2110.8,0.55074307]
[1770577769036,0.53143892,2111.6,2110.8,0.55074307]
[1770577769237,0.53143892,2111.5,2110.8,0.55074307]
[1770577769431,0.51960349,2111.4,2110.8,0.55074307]
[1770577769643,2.82830146,2111.5,2110.8,0.55074307]
[1770577769940,3.34790495,2111.5,2110.8,0.55074307]
[1770577770240,0.51960349,2111.4,2110.8,0.55074307]
[1770577771146,2.82830146,2111.5,2110.8,0.55074307]
[1770577771344,0.51960349,2111.4,2110.8,0.55074307]
[1770577773945,2.82830146,2111.5,2110.8,0.55074307]
[1770577774337,3.35178095,2111.5,2110.8,0.55074307]
[1770577774542,0.52347949,2111.4,2110.8,0.55074307]
[1770577777645,2.82830146,2111.5,2110.8,0.55074307]
[1770577780544,3.35220013,2111.5,2110.8,0.55074307]
[1770577783443,2.82830146,2111.5,2111.1,0.55074307]
[1770577783649,0.59088179,2111.8,2111.1,0.55074307]
[1770577788943,0.59088179,2111.8,2111.2,0.01173962]
[1770577789449,0.59000251,2112.4,2111.3,0.00881671]
[1770577789849,0.59000251,2112.4,2111.6,0.00881671]
[1770577790448,0.59000251,2112.4,2111.5,0.23697]
[1770577790844,0.59000251,2112.1,2111.5,0.23697]
[1770577791253,0.59000251,2112.1,2111.2,1.1669986]
[1770577791445,0.59000251,2112.1,2111.2,1.17536619]
[1770577792645,0.59000251,2111.9,2111.0,2.79367442]
[1770577792851,0.59000251,2111.5,2110.7,0.00836759]
[1770577794251,0.59000251,2112.1,2111.0,0.00630404]
[1770577798454,0.59000251,2112.1,2110.9,0.2425384]
[1770577799856,0.59000251,2112.0,2110.9,0.23704]
[1770577800556,5.33100251,2111.9,2110.6,0.00277367]
[1770577800750,0.59000251,2111.8,2110.6,0.00277367]
[1770577806852,0.59000251,2111.8,2110.5,0.23709]
[1770577810561,4.97791,2112.1,2110.1,2.79174658]
[1770577810562,0.59195538,2111.5,2110.1,2.79174658]
[1770577810757,0.59195538,2111.5,2110.0,19.91904599]
[1770577810954,0.59195538,2111.5,2110.0,20.21863592]
[1770577811560,0.59164942,2111.4,2110.0,20.21863592]
[1770577813959,0.59164942,2111.4,2110.0,18.10221269]
[1770577814961,0.5911398,2111.3,2110.0,18.10221269]
[1770577815756,5.3321398,2111.3,2110.0,18.10221269]
[1770577815962,0.59129228,2111.0,2110.0,17.80262276]
[1770577816164,0.59652191,2111.0,2110.0,17.80262276]
[1770577816756,0.5912956,2110.7,2109.4,0.23721]
[1770577818661,0.5912956,2110.7,2109.6,1.16829905]
[1770577818861,0.5912956,2110.7,2109.4,0.23721]
[1770577819661,0.5912956,2110.7,2109.4,0.54881872]
[1770577821166,0.5912956,2110.7,2109.4,0.23721]
[1770577821865,0.5912956,2110.7,2109.3,0.00254077]
[1770577822362,5.3322956,2110.7,2109.3,0.00254077]
[1770577822566,0.58974675,2110.5,2109.1,0.30593378]
[1770577822759,0.58974675,2110.3,2109.0,0.00254077]
[1770577827370,0.58974675,2110.3,2109.0,0.30727337]
[1770577827570,0.58974675,2110.3,2109.0,0.3047326]
[1770577827764,0.58974675,2110.3,2108.9,0.23727]
[1770577831369,0.59327857,2110.1,2108.6,19.35257166]
[1770577832270,4.741,2110.0,2108.6,19.35257166]
[1770577832469,0.59327857,2109.8,2108.6,19.35257166]
[1770577833579,0.59327857,2109.8,2108.7,0.23729]
[1770577834275,0.59366541,2110.2,2108.7,0.30306898]
[1770577834481,0.59366541,2110.2,2108.6,19.35257166]
[1770577834980,0.59366541,2110.2,2108.7,6.21544365]
[1770577835278,0.59366541,2110.2,2109.2,0.23723]
[1770577839385,0.59366541,2110.2,2109.3,0.01731426]
[1770577840383,0.83079541,2110.2,2108.8,0.01731426]
[1770577840684,0.58802806,2109.8,2108.8,0.01731426]
[1770577842187,5.32902806,2109.7,2108.7,0.00993646]
[1770577842691,0.58802806,2109.6,2108.7,0.00993646]
[1770577843593,0.58802806,2109.6,2108.4,0.01011182]
[1770577843790,3.41871926,2109.4,2108.4,0.01011182]
[1770577843989,0.58802806,2109.3,2108.4,0.01011182]
[1770577844190,0.58802806,2109.3,2108.2,0.24746182]
[1770577844394,0.58802806,2109.2,2108.2,0.24746182]
[1770577844794,0.58802806,2109.1,2108.2,0.01011182]
[1770577845191,0.58596123,2108.9,2107.7,0.01023551]
[1770577847397,0.57862363,2108.6,2107.2,0.01536936]
[1770577848395,0.57862363,2108.6,2107.3,0.0249107]
[1770577848993,0.57862363,2108.3,2107.1,0.2623807]
[1770577849295,0.57862363,2108.3,2107.2,0.0249107]
[1770577849699,0.57862363,2108.3,2107.3,0.03534264]
[1770577850292,0.57862363,2108.3,2107.4,0.03534264]
[1770577850487,0.57697198,2108.5,2107.6,0.03534264]
[1770577852195,0.57697198,2108.5,2107.2,0.33502928]
[1770577852400,0.57697198,2108.5,2107.3,0.02773671]
[1770577856001,0.57697198,2108.5,2107.5,0.03162897]
[1770577857504,0.57697198,2108.5,2107.8,0.03055119]
[1770577858698,0.57697198,2108.5,2107.7,0.2374]
[1770577858905,0.57697198,2108.5,2107.8,0.03055119]
[1770577861006,0.57697198,2108.7,2108.0,0.03086488]
[1770577861206,0.57697198,2108.7,2107.9,0.23738]
[1770577861398,0.57697198,2108.7,2107.9,0.26954461]
[1770577861795,0.57697198,2108.7,2108.0,0.03216461]
[1770577862006,0.57697198,2108.7,2107.9,0.23738]
[1770577862304,0.57697198,2108.7,2108.0,0.03216461]
[1770577862506,0.57697198,2108.7,2107.5,0.03216461]
[1770577863908,0.57697198,2108.7,2107.6,0.03357893]
[1770577865507,0.57697198,2108.7,2107.7,0.03722082]
[1770577869512,0.57697198,2108.7,2107.8,0.03640659]
[1770577870713,0.57697198,2108.7,2107.7,0.27381659]
[1770577870913,0.57697198,2108.7,2107.8,0.03640659]
[1770577871111,0.57697198,2108.6,2107.8,0.03640659]
[1770577871314,0.57697198,2108.6,2107.7,0.23741]
[1770577871315,0.57697198,2108.3,2107.3,0.03640659]
[1770577871514,0.57697198,2108.2,2107.3,0.03640659]
[1770577873318,0.57697198,2108.0,2107.3,0.03967023]
[1770577874522,0.57697198,2108.0,2107.2,0.5844228]
[1770577875616,0.59106382,2109.3,2107.8,0.23739]
[1770577875815,5.33206382,2108.9,2107.8,0.23739]
[1770577876120,0.59106382,2108.8,2107.3,0.23745]
[1770577876316,0.59106382,2108.8,2107.4,0.23744]
[1770577876717,0.59106382,2108.8,2107.3,2.79644864]
[1770577876718,0.59106382,2108.8,2107.6,0.23741]
[1770577877321,0.59075303,2108.7,2107.6,0.23741]
[1770577877721,0.59075303,2108.6,2107.6,0.23741]
[1770577877924,0.59075303,2108.5,2107.6,0.23741]
[1770577879528,0.59075303,2108.5,2107.6,1.93178992]
[1770577879730,0.59917793,2108.7,2107.9,0.23738]
[1770577881630,0.59917793,2108.7,2108.0,0.23737]
[1770577885430,0.59917793,2108.7,2107.5,3.03386864]
[1770577885826,0.59917793,2108.7,2107.6,0.23742]
[1770577886133,0.59917793,2108.7,2107.7,0.2374]
[1770577901340,0.59917793,2108.7,2107.7,0.24034087]
[1770577901540,0.59917793,2108.7,2107.8,0.00294087]
[1770577902842,0.59917793,2108.7,2107.9,1.17355289]
[1770577904038,0.59917793,2108.7,2108.1,0.02527172]
[1770577904242,0.58373692,2109.3,2108.4,1.17061202]
[1770577905742,1.75434894,2109.3,2108.3,0.018368]
[1770577905944,0.58198165,2109.2,2108.3,0.018368]
[1770577906550,0.58198165,2109.2,2108.2,1.17061202]
[1770577906746,0.58198165,2109.2,2108.3,0.018368]
[1770577908550,0.58198165,2109.2,2108.4,0.04146949]
[1770577909354,0.58198165,2109.2,2108.5,0.03668005]
[1770577909555,0.58198165,2109.2,2108.6,0.2373]
[1770577909751,0.56479158,2109.3,2108.7,0.03668005]
[1770577910755,0.57046121,2109.3,2108.6,0.24124394]
[1770577911556,5.31146121,2109.3,2107.7,3.38416232]
[1770577911857,0.56479158,2109.0,2107.7,0.58771368]
[1770577912456,0.56479158,2109.0,2107.7,0.59210585]
[1770577912657,0.56479158,2109.0,2107.8,0.58771368]
[1770577913451,0.56479158,2109.0,2107.8,0.82510368]
[1770577913659,0.56479158,2109.0,2107.9,0.58771368]
[1770577916158,0.56479158,2108.9,2107.8,0.23739]
[1770577917959,0.56479158,2108.9,2107.9,0.58771368]
[1770577918559,0.56479158,2108.9,2108.0,0.58771368]
[1770577918763,0.33030077,2108.9,2108.4,0.82503368]
[1770577918956,0.33030077,2108.9,2108.5,0.58771368]
[1770577919461,0.33030077,2108.9,2108.4,0.23732]
[1770577919662,0.33030077,2108.9,2108.4,0.82503368]
[1770577920760,0.33030077,2108.9,2108.5,0.58771368]
[1770577921059,0.33030077,2108.9,2108.0,2.79644864]
[1770577921266,0.33030077,2108.9,2108.0,0.58771368]
[1770577921761,0.33030077,2108.9,2107.8,0.58771368]
[1770577922366,0.33030077,2108.9,2107.9,0.58771368]
[1770577923265,0.33030077,2108.9,2107.9,0.23738]
[1770577923463,0.33030077,2108.9,2107.9,0.82509368]
[1770577923863,0.33030077,2108.9,2107.7,0.00439217]
[1770577924069,0.33030077,2108.9,2107.7,0.59210585]
[1770577926367,0.33030077,2108.9,2107.9,0.58771368]
[1770577927070,0.33030077,2108.9,2108.0,0.58771368]
[1770577927570,0.33030077,2108.9,2108.1,0.58771368]
[1770577927771,0.33030077,2108.9,2108.3,0.58771368]
[1770577928759,0.00566963,2109.3,2108.3,0.58771368]
[1770577928760,0.56479158,2109.2,2108.3,0.58771368]
[1770577928965,0.56479158,2109.2,2108.4,0.58771368]
[1770577929469,0.56479158,2109.2,2108.5,0.58771368]
[1770577929870,0.00566963,2109.3,2108.5,0.58771368]
[1770577930065,0.57046121,2109.3,2108.5,0.58771368]
[1770577930670,0.57046121,2109.3,2108.4,0.23733]
[1770577930869,0.57046121,2109.3,2108.4,0.82504368]
[1770577932172,0.57046121,2109.3,2108.5,0.58771368]
[1770577935671,3.40490934,2109.3,2108.5,0.58771368]
[1770577935869,0.55143207,2109.2,2108.5,0.58771368]
[1770577937378,2.84011776,2109.3,2108.5,0.58771368]
[1770577937569,0.5571017,2109.3,2108.5,0.58771368]
[1770577938476,0.00566963,2109.3,2108.6,0.53754773]
[1770577939479,0.00566963,2109.3,2108.6,0.77484773]
[1770577940482,0.00566963,2109.3,2108.7,0.53754773]
[1770577941471,0.55143207,2109.6,2108.8,0.53754773]
[1770577942682,0.55748789,2109.6,2108.8,0.53754773]
[1770577946385,0.55748789,2109.6,2108.9,0.53754773]
[1770577948091,0.55748789,2109.6,2109.0,0.53754773]
[1770577948793,0.00605582,2109.6,2109.2,0.53754773]
[1770577948987,0.55143207,2109.8,2109.2,0.54198131]
[1770577949989,0.00552695,2109.8,2109.2,0.54198131]
[1770577950184,0.00552695,2109.8,2109.2,0.77921131]
[1770577950377,0.00552695,2109.8,2109.3,0.53754773]
[1770577959792,2.83444813,2110.4,2109.5,0.53754773]
[1770577959998,0.55143207,2110.3,2109.6,0.53754773]
[1770577960192,0.55143207,2110.3,2109.5,0.77474773]
[1770577960604,0.55143207,2110.3,2109.5,0.2372]
[1770577960790,0.55702444,2110.3,2109.5,0.2372]
[1770577961002,0.55143207,2110.2,2109.6,0.53754773]
[1770577968314,0.55143207,2110.2,2109.5,0.79233066]
[1770577969513,0.55143207,2110.2,2109.6,0.55513066]
[1770577974216,0.54333034,2110.1,2109.6,0.55513066]
[1770577979818,0.00559237,2110.3,2109.7,1.72400673]
[1770577980122,0.54892271,2110.3,2109.8,0.55513066]
[1770577980318,0.00559237,2110.3,2109.8,0.79230066]
[1770577980519,0.54333034,2110.5,2109.9,0.55513066]
[1770577981422,0.54735196,2110.5,2109.9,0.55513066]
[1770577981627,0.54735196,2110.5,2110.0,0.55513066]
[1770577983721,0.54735196,2110.5,2109.8,0.79230066]
[1770577984826,0.54735196,2110.5,2109.8,1.17446814]
[1770577985325,0.54735196,2110.5,2109.9,0.55513066]
[1770577986329,6.367,2111.3,2110.1,0.55513066]
[1770577986330,0.54333034,2110.8,2110.1,0.55513066]
[1770577987023,0.54333034,2111.0,2110.2,0.55513066]
[1770577987227,0.54333034,2111.0,2110.3,0.55513066]
[1770577987426,0.54935838,2111.0,2110.3,0.55513066]
[1770577988927,0.54935838,2111.0,2110.4,0.55513066]
[1770577991431,0.54935838,2111.0,2110.3,1.16788872]
[1770577991432,0.54935838,2111.0,2110.6,0.55513066]
[1770577991625,0.38255645,2111.5,2110.6,0.55513066]
[1770577992632,0.38659159,2111.5,2110.6,0.55513066]
[1770577993225,0.38659159,2111.5,2110.8,0.55513066]
[1770577993425,0.38659159,2111.5,2111.0,0.55513066]
[1770577994026,1.55631962,2112.5,2111.5,0.55513066]
[1770577994232,0.3884309,2112.2,2111.3,0.79213066]
[1770577995125,0.39320718,2112.2,2111.4,0.57165682]
[1770577995435,0.38853527,2111.9,2111.0,0.57165682]
[1770577995621,0.38853527,2111.9,2111.2,0.57165682]
[1770577996225,0.38853527,2111.9,2111.4,0.57165682]
[1770577996426,0.38608832,2112.1,2111.4,0.57165682]
[1770577996623,0.38608832,2112.1,2111.6,0.57165682]
[1770577997133,0.00477628,2112.2,2111.5,1.16788872]
[1770577997134,0.00477628,2112.2,2111.8,0.57165682]
[1770577997333,0.38608832,2112.3,2111.8,0.57165682]
[1770577997935,0.39171349,2112.8,2112.2,0.57165682]
[1770577998128,0.39171349,2112.8,2112.0,0.57165682]
[1770577998326,0.39171349,2112.7,2111.8,0.57165682]
[1770577998522,0.39171349,2112.7,2111.9,0.57165682]
[1770578000737,0.39171349,2112.7,2112.1,0.57165682]
[1770578002629,0.39171349,2112.7,2111.7,0.57165682]
[1770578002835,0.39006666,2112.5,2111.7,0.57165682]
[1770578006241,0.39006666,2112.5,2111.9,0.57165682]
[1770578013041,0.00464689,2112.8,2112.1,0.57165682]
[1770578013243,0.3942868,2112.8,2112.1,0.57165682]
[1770578015450,0.39570522,2112.8,2112.1,0.57165682]
[1770578015651,0.39570522,2112.8,2112.2,0.57165682]
[1770578020655,0.40119897,2112.7,2112.2,0.57165682]
[1770578021656,0.40921483,2112.5,2111.8,0.57165682]
[1770578024552,0.41008626,2112.3,2111.8,0.57165682]
[1770578027250,0.41008626,2112.3,2111.4,0.58029361]
[1770578033162,0.41008626,2112.3,2111.6,0.58029361]
[1770578039774,0.41106524,2112.2,2111.6,0.58029361]
[1770578047178,3.24503642,2112.2,2111.6,0.58029361]
[1770578051383,3.24549915,2112.1,2111.6,0.58029361]
[1770578051578,0.41346186,2112.0,2111.6,0.58029361]
[1770578052089,3.24743304,2112.1,2111.6,0.58029361]
[1770578053085,2.83397118,2112.1,2111.6,0.58029361]
[1770578054287,3.24522223,2112.1,2111.6,0.58029361]
[1770578055196,0.4113231,2112.0,2111.6,0.58029361]
[1770578055486,3.24529428,2112.1,2111.6,0.58029361]
[1770578055691,0.41420619,2112.0,2111.6,0.58029361]
[1770578056489,3.24817737,2112.1,2111.6,0.58029361]
[1770578056691,0.41420619,2112.0,2111.6,0.58029361]
[1770578057088,0.41420619,2112.0,2111.4,0.57821635]
[1770578057691,3.39232913,2112.1,2111.4,0.57821635]
[1770578058692,0.55835795,2112.0,2111.4,0.57821635]
[1770578059890,3.39232913,2112.1,2111.4,0.57821635]
[1770578062690,2.83397118,2112.1,2111.4,0.57821635]
[1770578062891,2.83397118,2112.2,2111.5,0.57821635]
[1770578063392,2.83397118,2112.1,2111.5,0.57821635]
[1770578064693,2.83397118,2112.2,2111.5,0.57821635]
[1770578066202,2.83397118,2112.2,2111.7,0.57821635]
[1770578066496,0.55835795,2112.7,2111.8,0.57821635]
[1770578066890,0.55835795,2112.7,2112.0,0.57821635]
[1770578068394,0.55835795,2113.3,2112.3,0.57821635]
[1770578069189,0.56381953,2113.3,2112.3,0.58289972]
[1770578072294,0.56381953,2113.3,2112.3,0.81977972]
[1770578072493,0.56381953,2113.3,2112.4,0.57821635]
[1770578077300,0.55835795,2114.5,2113.2,0.57821635]
[1770578077598,0.55835795,2114.4,2113.2,0.57821635]
[1770578078405,0.56182389,2114.4,2113.2,0.57821635]
[1770578079001,0.56182389,2114.4,2113.4,0.57821635]
[1770578079400,7.2887844,2115.6,2113.7,0.57821635]
[1770578079597,0.4462947,2115.4,2114.0,0.57821635]
[1770578080201,0.4462947,2115.4,2114.3,0.57821635]
[1770578080407,0.43247187,2115.4,2114.6,0.57821635]
[1770578080699,0.43774373,2115.4,2114.6,0.57821635]
[1770578081407,0.00527186,2115.4,2114.6,0.57821635]
[1770578081606,0.43813186,2115.4,2114.6,0.57821635]
[1770578082408,0.00527186,2115.4,2114.8,0.57821635]
[1770578083706,0.45395357,2115.4,2114.8,0.57821635]
[1770578086506,0.00527186,2115.4,2114.8,0.57821635]
[1770578090215,0.47270529,2115.4,2114.8,0.57821635]
[1770578091216,0.47270529,2115.4,2114.6,0.5420925]
[1770578092417,0.00527186,2115.4,2114.6,0.5420925]
[1770578092817,0.00527186,2115.4,2114.6,0.7787125]
[1770578093014,0.46134011,2115.8,2114.8,0.5420925]
[1770578093912,0.00363117,2115.8,2114.9,0.5420925]
[1770578094114,0.45795203,2116.6,2115.4,0.5420925]
[1770578095116,0.46185323,2116.6,2115.4,0.5420925]
[1770578095623,0.46185323,2116.6,2115.5,0.5420925]
[1770578096216,0.46185323,2116.6,2115.2,0.5420925]
[1770578096411,0.46682838,2116.2,2115.0,0.5420925]
[1770578096617,0.46682838,2115.3,2114.3,0.00338758]
[1770578096816,0.4634408,2114.8,2112.4,1.91927929]
[1770578097016,0.4634408,2114.6,2113.3,0.5420925]
[1770578097213,0.4634408,2114.4,2112.7,0.23684]
[1770578097412,0.4634408,2114.4,2112.3,0.5420925]
[1770578097619,0.46112599,2114.0,2112.3,0.5420925]
[1770578097826,0.46112599,2113.7,2112.0,0.5420925]
[1770578098014,0.45661681,2113.0,2111.4,0.5420925]
[1770578098420,0.45661681,2113.0,2110.7,0.23706]
[1770578098421,0.45661681,2112.8,2111.0,2.66359779]
[1770578098620,0.45661681,2112.5,2110.6,0.5420925]
[1770578098814,0.45998369,2112.5,2110.6,0.5455792]
[1770578099222,5.20161681,2112.3,2110.6,0.0034867]
[1770578099416,0.45315789,2112.1,2110.0,0.5420925]
[1770578099618,1.09299688,2112.5,2109.5,0.5420925]
[1770578099619,0.45315789,2111.5,2109.5,0.5420925]
[1770578099824,0.45315789,2111.0,2109.0,0.35731419]
[1770578100019,0.45315789,2111.0,2109.0,0.89940669]
[1770578100020,0.45315789,2110.8,2109.0,0.89940669]
[1770578100323,0.45315789,2111.0,2109.5,0.5420925]
[1770578100617,6.116,2111.7,2110.0,0.5420925]
[1770578100821,1.91927929,2113.1,2110.5,0.58986088]
[1770578101021,6.117,2112.3,2110.5,0.58986088]
[1770578101220,6.117,2112.3,2111.0,0.58986088]
[1770578101422,6.12913272,2112.3,2111.0,0.59334409]
[1770578101619,0.00777083,2112.2,2111.0,0.59334409]
[1770578102127,0.00436189,2112.3,2111.0,0.59334409]
[1770578102327,0.00436189,2112.3,2111.0,0.83037409]
[1770578102529,0.00436189,2112.3,2111.1,0.58597547]
[1770578103928,0.00436189,2112.3,2111.3,0.59056905]
[1770578104126,6.118,2113.0,2111.3,0.59056905]
[1770578104328,0.00294556,2113.6,2111.7,0.5883881]
[1770578104526,0.00294556,2113.5,2111.7,0.5883881]
[1770578104828,0.00294556,2113.5,2111.4,0.5883881]
[1770578105229,0.00294556,2113.4,2111.4,0.5883881]
[1770578107127,0.00294556,2113.4,2111.6,0.59382152]
[1770578107326,0.00294556,2113.4,2111.7,0.59382152]
[1770578107829,0.00294556,2113.4,2111.8,0.59360865]
[1770578108725,0.00294556,2113.4,2111.8,0.83054865]
[1770578108930,0.00373956,2113.5,2112.2,0.59360865]
[1770578109430,0.00373956,2113.5,2112.4,0.59360865]
[1770578117537,0.00373956,2113.5,2112.6,0.59320351]
[1770578117737,0.00373956,2113.5,2112.6,0.59780994]
[1770578119341,0.00373956,2113.5,2113.0,0.59320351]
[1770578119538,6.121,2114.1,2113.0,0.59320351]
[1770578120344,6.121,2114.1,2113.2,0.59116673]
[1770578120643,0.00355844,2114.8,2113.5,0.59116673]
[1770578121644,0.00927923,2114.8,2113.7,0.5894545]
[1770578121946,0.00264241,2114.7,2113.7,0.5894545]
[1770578122546,0.00572079,2114.8,2113.7,0.5894545]
[1770578122744,0.0083632,2114.8,2113.7,0.5894545]
[1770578123143,0.00572079,2114.8,2113.7,0.8261845]
[1770578123343,0.00572079,2114.8,2113.8,0.5894545]
[1770578123540,0.00572079,2114.8,2114.1,0.59786139]
[1770578123739,0.00572079,2114.8,2114.1,0.60227544]
[1770578125148,0.00572079,2114.8,2114.1,0.83895544]
[1770578125349,6.12,2115.8,2114.2,0.59500099]
[1770578125548,10.865,2115.8,2114.3,0.59205638]
[1770578126253,6.12,2115.8,2114.3,0.59205638]
[1770578126456,6.12471414,2115.8,2114.5,0.82869638]
[1770578126746,6.12471414,2115.8,2114.6,0.59205638]
[1770578126955,2.15727934,2115.5,2114.4,0.59205638]
[1770578128151,2.80242904,2115.7,2114.4,0.59205638]
[1770578129051,2.80242904,2115.6,2114.4,0.59205638]
[1770578129249,1.92074934,2115.5,2114.4,0.59205638]
[1770578129445,4.72317838,2115.5,2114.4,0.59205638]
[1770578130647,3.03896904,2115.4,2114.2,0.60009225]
[1770578130852,1.92074934,2115.1,2114.2,0.60009225]
[1770578131448,4.72317838,2115.1,2114.1,0.00441405]
[1770578131654,3.03900904,2115.1,2114.1,0.6004849]
[1770578131852,0.23658,2115.1,2114.1,0.6004849]
[1770578132448,2.80242904,2115.2,2114.1,0.6004849]
[1770578132647,2.80242904,2115.4,2114.1,0.6004849]
[1770578133147,13.16442904,2115.5,2114.1,0.6004849]
[1770578133456,10.362,2115.5,2114.1,0.6004849]
[1770578133857,4.74971414,2115.8,2114.3,0.59505607]
[1770578133858,2.80714318,2115.8,2114.3,0.59505607]
[1770578134054,0.00471414,2115.8,2114.5,0.59505607]
[1770578136858,2.80714318,2115.8,2114.5,0.59505607]
[1770578137059,2.80242904,2115.7,2114.5,0.59505607]
[1770578137551,2.80242904,2115.6,2114.5,0.59505607]
[1770578138450,7.54742904,2115.6,2114.5,0.59505607]
[1770578138655,2.80242904,2115.3,2114.5,0.59505607]
[1770578141061,2.80242904,2115.4,2114.5,0.59505607]
[1770578141461,2.81773697,2115.4,2114.5,0.59505607]
[1770578142759,0.01530793,2115.3,2114.5,0.59505607]
[1770578143265,2.81773697,2115.3,2114.5,0.59505607]
[1770578146364,2.80242904,2115.2,2114.5,0.59505607]
[1770578146867,2.8133137,2115.2,2114.5,0.59505607]
[1770578148270,2.80242904,2115.1,2114.5,0.59505607]
[1770578148875,2.82003446,2115.1,2114.5,0.59505607]
[1770578149070,0.01760542,2115.0,2114.5,0.59505607]
[1770578149271,2.82003446,2115.0,2114.5,0.59505607]
[1770578149470,2.80242904,2115.0,2114.5,0.59505607]
[1770578150772,2.80242904,2114.9,2114.5,0.59505607]
[1770578151475,2.81736164,2114.9,2114.5,0.59505607]
[1770578151871,2.80242904,2114.9,2114.5,0.59505607]
[1770578153171,2.80242904,2114.9,2114.3,0.58339196]
[1770578153172,0.0149326,2114.8,2114.3,0.58339196]
[1770578153371,2.80242904,2114.8,2114.3,0.58339196]
[1770578154076,2.81749381,2114.8,2114.3,0.58339196]
[1770578154676,2.80242904,2114.7,2114.3,0.58339196]
[1770578155071,2.81749381,2114.7,2114.3,0.58339196]
[1770578155479,2.80242904,2114.7,2114.3,0.58339196]
[1770578155677,2.8165396,2114.7,2114.3,0.58339196]
[1770578156273,2.8165396,2114.7,2114.2,0.22719797]
[1770578156479,0.57978063,2114.6,2114.2,0.22719797]
[1770578157279,0.57978063,2114.6,2114.2,0.23091313]
[1770578159882,0.57978063,2114.6,2114.2,0.58339196]
[1770578160080,0.57978063,2114.6,2114.0,0.58339196]
[1770578160582,0.57978063,2114.4,2113.6,0.58339196]
[1770578160790,0.57978063,2113.9,2113.6,0.00343276]
[1770578160976,0.58528641,2113.9,2113.4,0.58339196]
[1770578161886,0.58528641,2113.9,2113.4,0.58946048]
[1770578162183,0.00550578,2113.9,2113.4,0.58946048]
[1770578162374,0.58528641,2113.9,2113.4,0.58946048]
[1770578164885,0.58528641,2113.9,2113.4,0.00606852]
[1770578165083,3.38220967,2113.7,2112.8,0.58339196]
[1770578165280,0.57978063,2113.5,2112.8,0.58339196]
[1770578165579,0.57978063,2113.5,2112.6,0.58339196]
[1770578166182,3.38220967,2113.5,2112.6,0.5878246]
[1770578166382,19.73452997,2113.4,2112.6,0.00443264]
[1770578166688,0.57978063,2113.1,2111.8,0.58339196]
[1770578166892,0.57978063,2113.0,2111.8,0.58339196]
[1770578167083,3.38220967,2113.0,2111.8,0.58339196]
[1770578167286,0.57978063,2112.9,2111.8,0.58339196]
[1770578167484,0.57978063,2112.9,2111.8,0.58763081]
[1770578167987,3.38220967,2112.9,2111.8,0.00423885]
[1770578168283,0.57978063,2112.8,2111.8,0.00423885]
[1770578169087,0.57978063,2112.8,2111.8,0.58763081]
[1770578171981,2.50052997,2113.0,2111.8,0.58763081]
[1770578172184,0.57978063,2113.3,2112.0,0.58339196]
[1770578173782,0.57978063,2113.5,2112.4,0.23688]
[1770578173982,0.57978063,2113.5,2112.5,0.58339196]
[1770578175183,0.56367881,2113.7,2112.5,0.58339196]
[1770578176289,0.56367881,2113.7,2111.9,12.17]
[1770578176290,0.00550578,2113.9,2112.7,0.54056421]
[1770578176486,0.56367881,2113.7,2112.6,6.03589695]
[1770578176790,0.56367881,2113.6,2112.4,0.54056421]
[1770578185696,0.56367881,2113.6,2112.5,0.54056421]
[1770578187301,0.56367881,2113.5,2112.5,0.54056421]
[1770578188104,0.56367881,2113.4,2112.5,0.54056421]
[1770578188297,0.56367881,2113.3,2112.5,0.54056421]
[1770578190504,0.56367881,2113.5,2112.7,0.54056421]
[1770578191705,2.80242904,2113.6,2112.7,0.54056421]
[1770578191907,3.36610785,2113.6,2112.7,0.54056421]
[1770578192110,2.80242904,2113.7,2112.8,0.54056421]
[1770578192310,0.56367881,2113.8,2112.8,0.54056421]
[1770578192716,0.56367881,2113.8,2113.0,0.54056421]
[1770578193606,0.56367881,2113.8,2113.1,0.54056421]
[1770578194206,0.00550578,2113.9,2113.1,0.54056421]
[1770578195911,0.56918459,2113.9,2113.1,0.54056421]
[1770578205018,0.00550578,2113.9,2113.1,0.77736421]
[1770578205218,0.00550578,2113.9,2113.2,0.56658443]
[1770578205725,0.54516808,2113.9,2113.2,0.56658443]
[1770578209528,0.00550578,2113.9,2113.2,0.56658443]
[1770578210931,0.54516808,2113.9,2113.2,0.56658443]
[1770578215130,0.5396623,2113.6,2112.6,0.80343443]
[1770578215331,0.5396623,2113.3,2112.7,0.56658443]
[1770578218638,0.5396623,2113.3,2112.6,0.23685]
[1770578218833,0.5396623,2113.3,2112.6,0.80343443]
[1770578219236,0.5396623,2113.3,2112.7,0.56658443]
[1770578224442,0.5396623,2113.3,2112.5,0.56658443]
[1770578224643,0.5396623,2113.2,2112.3,0.56658443]
[1770578225443,2.82664842,2113.3,2112.5,0.23686]
[1770578225643,3.36631072,2113.4,2112.6,0.56658443]
[1770578226540,0.5396623,2113.4,2112.6,0.56658443]
[1770578226740,3.36631072,2113.6,2112.9,0.56658443]
[1770578226940,3.3718165,2113.9,2113.0,0.56658443]
[1770578227546,2.8321542,2113.9,2113.0,0.56658443]
[1770578227746,0.5396623,2113.8,2113.0,0.56658443]
[1770578229349,0.5396623,2113.7,2113.0,0.56658443]
[1770578230550,3.3718165,2113.9,2113.0,0.56658443]
[1770578230741,0.54516808,2113.9,2113.0,0.56658443]
[1770578240348,0.54516808,2113.9,2112.9,0.23682]
[1770578240349,0.5686381,2113.8,2112.9,0.23682]
[1770578240549,0.5686381,2113.7,2112.9,0.801646]
[1770578240755,0.5686381,2113.7,2113.0,0.564826]
[1770578241648,0.57414388,2113.9,2113.0,0.564826]
[1770578243154,0.5686381,2113.8,2113.0,0.564826]
[1770578248357,3.39528652,2113.8,2113.0,0.564826]
[1770578248558,0.5686381,2113.7,2113.0,0.564826]
[1770578251854,0.00550578,2113.9,2113.1,0.564826]
[1770578252059,0.57414388,2113.9,2113.1,0.564826]
[1770578258259,0.5686381,2114.3,2113.7,0.564826]
[1770578258459,0.5686381,2115.1,2114.3,0.564826]
[1770578258650,0.5686381,2115.1,2114.2,0.564826]
[1770578258858,0.5686381,2115.0,2114.2,0.564826]
[1770578259459,0.57196103,2115.0,2114.2,0.57013128]
[1770578260267,0.57196103,2115.0,2114.3,0.564826]
[1770578260563,0.00332293,2115.0,2114.7,0.564826]
[1770578260762,0.5686381,2115.2,2114.7,0.564826]
[1770578261160,0.5686381,2116.0,2114.7,0.564826]
[1770578261664,0.57400873,2116.0,2114.7,0.564826]
[1770578262368,0.5686381,2115.7,2114.5,0.564826]
[1770578263165,0.5686381,2115.7,2114.2,0.00530528]
[1770578263166,0.5686381,2115.7,2114.3,0.564826]